bitfinex/quotes_SOLUSD_20220113
["timestamp","ask_amount","ask_price","bid_price","bid_amount"]
[1642055420395,0.04,150.59,150.52,35.83871273]
[1642055423100,0.04,150.59,150.52,29.83871273]
[1642055424203,0.04,150.59,150.51,9.9633]
[1642055424405,2.656,150.58,150.52,6.0]
[1642055424602,2.656,150.58,150.51,6.0]
[1642055424802,2.906,150.58,150.5,6.0]
[1642055425603,2.906,150.58,150.51,66.81]
[1642055425804,0.25,150.58,150.51,69.467]
[1642055426002,0.25,150.58,150.52,6.0]
[1642055426203,0.29,150.59,150.52,6.25]
[1642055426605,0.04,150.59,150.52,0.25]
[1642055427234,0.04,150.59,150.52,10.2131]
[1642055427830,0.04,150.59,150.52,0.25]
[1642055428030,0.04,150.59,150.52,24.3654]
[1642055428334,0.04,150.59,150.52,24.6154]
[1642055431030,0.04,150.59,150.53,6.0]
[1642055431234,0.04,150.59,150.53,0.25]
[1642055432336,0.04,150.59,150.52,37.2345]
[1642055432636,0.04,150.59,150.52,34.5785]
[1642055433033,0.04,150.59,150.53,6.0]
[1642055433333,0.04,150.59,150.53,0.25]
[1642055434434,0.04,150.59,150.52,24.6154]
[1642055434638,2.696,150.59,150.52,24.6154]
[1642055435137,2.946,150.59,150.52,24.6154]
[1642055440543,12.9116,150.59,150.52,24.6154]
[1642055443944,12.9116,150.59,150.52,0.25]
[1642055444149,24.154,150.58,150.49,27.8085]
[1642055444646,24.404,150.58,150.49,27.8085]
[1642055446250,24.404,150.58,150.5,6.0]
[1642055446446,24.404,150.58,150.51,24.5188]
[1642055446649,24.404,150.58,150.51,24.7688]
[1642055447346,24.404,150.58,150.56,0.035278]
[1642055450852,34.3702,150.58,150.56,0.035278]
[1642055451051,43.9402,150.58,150.56,0.035278]
[1642055451252,75.656,150.57,150.56,0.035278]
[1642055451453,85.156,150.57,150.56,0.035278]
[1642055451652,85.406,150.57,150.56,0.035278]
[1642055452353,95.3747,150.57,150.56,0.035278]
[1642055452953,22.1247,150.57,150.56,0.035278]
[1642055453554,19.4687,150.57,150.56,0.035278]
[1642055454555,19.5387,150.57,150.56,0.035278]
[1642055454857,22.4447,150.57,150.56,0.035278]
[1642055455354,72.4447,150.57,150.56,0.035278]
[1642055456554,72.4847,150.57,150.56,0.035278]
[1642055456757,72.4847,150.57,150.56,0.005278]
[1642055460890,22.4847,150.57,150.56,0.005278]
[1642055469498,89.2947,150.57,150.56,0.005278]
[1642055469901,22.4847,150.57,150.56,0.005278]
[1642055471804,89.2947,150.57,150.56,0.005278]
[1642055472608,73.0,150.56,150.44,2.656]
[1642055472909,0.07,150.49,150.44,2.656]
[1642055473510,23.00409662,150.49,150.44,2.656]
[1642055473707,23.25409662,150.49,150.44,2.656]
[1642055474212,9.9735,150.47,150.44,2.656]
[1642055474608,10.2235,150.47,150.44,2.656]
[1642055475410,10.2235,150.47,150.45,6.06429993]
[1642055475609,10.2235,150.47,150.42,92.9]
[1642055478812,10.2235,150.47,150.42,93.15]
[1642055479213,24.3612,150.48,150.42,93.15]
[1642055480615,24.6112,150.48,150.42,93.15]
[1642055481618,0.25,150.48,150.42,93.15]
[1642055481821,77.9082,150.5,150.42,93.15]
[1642055483321,77.6582,150.5,150.42,93.15]
[1642055483523,75.0002,150.5,150.42,93.15]
[1642055485124,75.0002,150.5,150.43,2.658]
[1642055485525,75.0002,150.5,150.43,27.903]
[1642055485725,75.2502,150.5,150.43,27.903]
[1642055486726,75.2502,150.5,150.44,24.93711049]
[1642055487153,0.25,150.5,150.44,25.18711049]
[1642055487551,12.8781,150.52,150.44,25.18711049]
[1642055488456,2.908,150.52,150.44,25.18711049]
[1642055488654,0.25,150.52,150.44,25.18711049]
[1642055489055,26.8285,150.53,150.44,25.18711049]
[1642055489254,24.1705,150.53,150.45,23.1549]
[1642055489753,24.1705,150.53,150.45,23.4049]
[1642055490554,2.657,150.52,150.45,23.4049]
[1642055490756,2.907,150.52,150.45,23.4049]
[1642055491057,2.907,150.52,150.44,19.60474961]
[1642055491255,0.25,150.52,150.44,19.60474961]
[1642055491857,26.8285,150.53,150.45,24.5888]
[1642055492258,26.8285,150.53,150.45,24.8388]
[1642055494560,26.5785,150.53,150.45,24.8388]
[1642055495464,23.9205,150.53,150.45,24.8388]
[1642055495965,24.1705,150.53,150.45,24.8388]
[1642055497869,34.14,150.53,150.45,24.8388]
[1642055498267,24.1705,150.53,150.45,24.8388]
[1642055499968,2.657,150.54,150.45,24.8388]
[1642055500267,12.626,150.54,150.45,24.8388]
[1642055501068,24.1831,150.53,150.45,24.8388]
[1642055501268,24.4331,150.53,150.45,27.4958]
[1642055502470,29.97759255,150.52,150.45,27.4958]
[1642055502670,32.88459255,150.52,150.45,27.4958]
[1642055503771,32.88459255,150.52,150.45,24.8388]
[1642055504273,42.85499255,150.52,150.45,24.8388]
[1642055506375,42.85499255,150.52,150.45,0.25]
[1642055506578,24.1234,150.51,150.45,0.25]
[1642055506779,24.3734,150.51,150.43,23.2907]
[1642055507579,34.3444,150.51,150.43,23.2907]
[1642055507978,37.0024,150.51,150.43,23.2907]
[1642055511882,37.0024,150.51,150.43,23.0407]
[1642055513081,37.0024,150.51,150.43,23.2907]
[1642055517517,37.0024,150.51,150.4,2.658]
[1642055517518,113.3824,150.51,150.4,2.658]
[1642055517712,192.401,150.51,150.4,0.25]
[1642055519012,192.401,150.51,150.39,2.908]
[1642055519515,192.401,150.51,150.39,2.658]
[1642055520514,192.401,150.51,150.38,24.6016]
[1642055521616,192.401,150.51,150.38,24.8516]
[1642055522023,6.94274606,150.5,150.38,24.8516]
[1642055522224,9.9737,150.47,150.38,24.8516]
[1642055522424,53.77318585,150.46,150.38,24.8516]
[1642055522824,54.02318585,150.46,150.38,24.8516]
[1642055524325,24.0922,150.46,150.38,24.8516]
[1642055530830,59.84512286,150.46,150.36,2.658]
[1642055531129,66.81,150.44,150.35,24.5706]
[1642055531329,26.679,150.43,150.35,24.5706]
[1642055531732,26.929,150.43,150.35,24.5706]
[1642055531932,29.81319777,150.42,150.35,24.5706]
[1642055532162,30.06319777,150.42,150.35,24.5706]
[1642055532331,10.2272,150.42,150.35,24.5706]
[1642055538442,10.2272,150.42,150.36,30.15294345]
[1642055540163,10.2272,150.42,150.35,24.5706]
[1642055540365,19.7272,150.42,150.35,24.5706]
[1642055541267,33.85453346,150.41,150.35,24.5706]
[1642055541765,34.10453346,150.41,150.35,24.5706]
[1642055542567,36.76253346,150.41,150.36,0.02]
[1642055543067,36.76253346,150.41,150.36,0.04]
[1642055543865,34.10453346,150.41,150.36,0.04]
[1642055544668,26.5182,150.4,150.36,0.04]
[1642055544867,36.4969,150.4,150.36,0.04]
[1642055545067,36.7469,150.4,150.36,0.04]
[1642055545267,103.5569,150.4,150.36,0.04]
[1642055545872,9.5,150.39,150.36,0.04]
[1642055546070,104.56191388,150.38,150.36,0.04]
[1642055546270,104.81191388,150.38,150.36,0.04]
[1642055549676,107.47191388,150.38,150.36,0.04]
[1642055549976,78.1,150.37,150.36,0.04]
[1642055550176,78.35,150.37,150.36,0.04]
[1642055550378,145.16,150.37,150.36,0.04]
[1642055550577,145.16,150.37,150.3,92.9]
[1642055551178,109.16,150.37,150.3,93.15]
[1642055552584,109.16,150.37,150.3,92.9]
[1642055552882,12.6414,150.36,150.3,92.9]
[1642055553283,12.8914,150.36,150.3,92.9]
[1642055556089,25.56684763,150.35,150.3,92.9]
[1642055556286,9.9824,150.34,150.3,92.9]
[1642055556485,12.6424,150.34,150.3,92.9]
[1642055556687,22.3924,150.34,150.3,92.9]
[1642055557689,22.3924,150.34,150.28,23.5975]
[1642055557892,45.9211,150.34,150.28,23.5975]
[1642055558526,112.7311,150.34,150.28,23.5975]
[1642055559529,112.7311,150.34,150.24,167.57395658]
[1642055559730,112.7311,150.34,150.25,22.8857]
[1642055560528,112.8011,150.34,150.24,94.79455658]
[1642055560728,1.67258303,150.33,150.24,94.79455658]
[1642055560927,9.9862,150.28,150.24,94.79455658]
[1642055561328,9.9862,150.28,150.24,92.9]
[1642055561534,9.9862,150.28,150.24,121.6562004]
[1642055561728,22.5617,150.3,150.24,121.6562004]
[1642055562128,22.8117,150.3,150.24,121.6562004]
[1642055562530,12.161,150.32,150.24,121.6562004]
[1642055562733,9.75,150.32,150.24,121.9062004]
[1642055563332,33.4625,150.31,150.24,121.9062004]
[1642055563732,33.7125,150.31,150.24,121.9062004]
[1642055564134,23.7278,150.31,150.24,121.9062004]
[1642055568035,33.7119,150.31,150.24,121.9062004]
[1642055572141,10.2341,150.31,150.24,121.9062004]
[1642055572339,0.25,150.31,150.24,121.9062004]
[1642055572640,2.661,150.34,150.25,23.9639]
[1642055572839,2.661,150.35,150.25,36.1249]
[1642055573039,424.3142475,150.38,150.26,6.0]
[1642055573239,424.3142475,150.38,150.27,37.0144]
[1642055573438,424.3142475,150.38,150.28,24.56770251]
[1642055573643,424.3142475,150.38,150.29,2.66]
[1642055573841,424.3142475,150.38,150.29,24.8762]
[1642055574040,422.48799628,150.38,150.29,25.1262]
[1642055574241,422.73799628,150.38,150.29,25.1262]
[1642055575641,422.48799628,150.38,150.29,25.1262]
[1642055577144,422.48799628,150.38,150.29,35.1044]
[1642055577545,422.48799628,150.38,150.3,2.66]
[1642055577747,2.66,150.41,150.31,27.18979699]
[1642055578146,2.91,150.41,150.31,27.43979699]
[1642055578948,12.8876,150.41,150.31,27.43979699]
[1642055579759,12.8876,150.41,150.31,52.19449699]
[1642055581260,12.8876,150.41,150.31,24.7547]
[1642055581456,0.07,150.4,150.3,2.66]
[1642055581659,9.9802,150.37,150.28,24.84095658]
[1642055581855,9.9802,150.37,150.28,25.09095658]
[1642055582057,10.2302,150.37,150.28,22.9464]
[1642055582256,27.38910011,150.36,150.28,22.9464]
[1642055582459,30.04910011,150.36,150.28,22.9464]
[1642055583056,40.03010011,150.36,150.28,22.9464]
[1642055583257,37.37010011,150.36,150.28,22.9464]
[1642055583465,37.62010011,150.36,150.28,22.9464]
[1642055583856,10.231,150.36,150.28,22.9464]
[1642055584057,10.231,150.36,150.28,23.1964]
[1642055585357,9.981,150.36,150.29,28.702389]
[1642055585759,9.981,150.36,150.29,28.952389]
[1642055586660,10.231,150.36,150.29,28.952389]
[1642055588463,10.231,150.36,150.29,28.702389]
[1642055589666,2.66,150.35,150.29,28.702389]
[1642055590066,2.91,150.35,150.29,28.702389]
[1642055590967,0.25,150.35,150.29,28.702389]
[1642055591170,12.891,150.36,150.29,28.702389]
[1642055601906,35.98217506,150.36,150.28,22.9464]
[1642055603307,35.98217506,150.36,150.28,47.827]
[1642055604307,12.891,150.36,150.28,47.827]
[1642055609915,38.3323815,150.36,150.28,47.827]
[1642055610316,9.5,150.35,150.28,47.827]
[1642055610514,2.661,150.34,150.28,24.8806]
[1642055610714,9.983,150.33,150.28,24.8806]
[1642055611116,10.233,150.33,150.28,24.8806]
[1642055611518,10.233,150.33,150.26,22.7263]
[1642055613118,0.25,150.33,150.26,22.7263]
[1642055613321,2.661,150.34,150.26,22.7263]
[1642055613620,2.911,150.34,150.26,22.7263]
[1642055615120,2.911,150.34,150.26,22.9763]
[1642055615820,0.25,150.34,150.26,22.9763]
[1642055616220,45.3548,150.35,150.26,22.9763]
[1642055617323,45.3548,150.35,150.26,25.6373]
[1642055617922,35.3727,150.35,150.26,25.6373]
[1642055620151,45.3543,150.35,150.26,25.6373]
[1642055620550,45.3543,150.35,150.26,22.9763]
[1642055622355,32.7117,150.35,150.27,2.661]
[1642055622755,32.7117,150.35,150.27,2.911]
[1642055623156,32.7117,150.35,150.28,30.94467046]
[1642055623555,32.7117,150.35,150.28,31.19467046]
[1642055623955,32.7117,150.35,150.28,30.94467046]
[1642055624658,32.7117,150.35,150.28,31.19467046]
[1642055626158,32.7117,150.35,150.28,30.94467046]
[1642055628159,32.4617,150.35,150.28,30.94467046]
[1642055628359,32.4617,150.35,150.28,31.19467046]
[1642055630159,2.661,150.37,150.28,31.19467046]
[1642055630363,0.25,150.37,150.29,22.6727]
[1642055630760,28.903385,150.38,150.29,22.9227]
[1642055630960,468.51835148,150.39,150.29,89.7327]
[1642055630961,470.32653648,150.39,150.29,89.7327]
[1642055631163,470.32653648,150.39,150.3,0.07]
[1642055631361,470.32653648,150.39,150.32,9.9763]
[1642055631660,468.51835148,150.39,150.33,28.46021837]
[1642055631862,1.808185,150.41,150.33,28.46021837]
[1642055632063,2.66,150.4,150.33,28.46021837]
[1642055632461,2.91,150.4,150.33,28.46021837]
[1642055633665,0.25,150.4,150.33,28.46021837]
[1642055634066,2.91,150.41,150.33,28.46021837]
[1642055635169,2.91,150.41,150.33,28.71021837]
[1642055635369,2.66,150.41,150.33,38.68591837]
[1642055635569,1.808185,150.42,150.34,2.66]
[1642055635768,1.808185,150.42,150.34,27.2338]
[1642055635970,1.808185,150.42,150.34,35.2668]
[1642055636169,1.808185,150.44,150.34,35.2668]
[1642055636370,2.658,150.43,150.34,32.6068]
[1642055636768,2.908,150.43,150.34,32.6068]
[1642055636969,2.908,150.43,150.34,24.5738]
[1642055637198,2.908,150.43,150.34,34.5483]
[1642055637669,2.908,150.43,150.34,37.2063]
[1642055638271,25.4083,150.43,150.34,37.2063]
[1642055639072,22.7503,150.43,150.34,37.2063]
[1642055648618,22.7503,150.43,150.34,34.5483]
[1642055648821,22.7503,150.43,150.34,34.2983]
[1642055650223,22.7503,150.43,150.34,34.5483]
[1642055651426,0.25,150.43,150.34,34.5483]
[1642055651726,12.8833,150.44,150.34,34.5483]
[1642055652328,14.691485,150.44,150.34,34.5483]
[1642055653928,4.716185,150.44,150.34,34.5483]
[1642055655330,4.716185,150.44,150.34,101.3583]
[1642055657159,4.716185,150.44,150.34,34.5483]
[1642055657960,1.808185,150.43,150.34,34.5483]
[1642055658162,2.058185,150.43,150.34,34.5483]
[1642055658760,2.058185,150.43,150.35,66.81]
[1642055658960,2.058185,150.43,150.35,76.7841]
[1642055659160,2.058185,150.43,150.35,77.0341]
[1642055659862,1.808185,150.43,150.35,77.0341]
[1642055660061,1.808185,150.43,150.36,2.658]
[1642055660262,1.808185,150.43,150.36,26.8569]
[1642055660764,1.808185,150.44,150.36,26.8569]
[1642055661161,2.058185,150.44,150.36,26.8569]
[1642055661362,2.058185,150.44,150.36,36.8306]
[1642055661762,1.808185,150.43,150.36,36.8306]
[1642055662161,2.058185,150.43,150.36,36.8306]
[1642055662761,2.058185,150.43,150.36,26.8569]
[1642055663862,1.808185,150.42,150.36,26.8569]
[1642055664064,1.808185,150.42,150.36,24.1989]
[1642055664262,2.058185,150.42,150.36,24.1989]
[1642055665263,2.058185,150.42,150.36,23.9489]
[1642055671970,1.808185,150.41,150.36,23.9489]
[1642055672171,1.808185,150.41,150.36,24.1989]
[1642055672871,1.808185,150.42,150.36,24.1989]
[1642055673273,2.058185,150.42,150.36,24.1989]
[1642055679982,1.808185,150.41,150.36,0.25]
[1642055680185,1.808185,150.41,150.34,27.2958]
[1642055680582,1.808185,150.41,150.34,27.0458]
[1642055680883,2.058185,150.41,150.34,27.0458]
[1642055682081,2.058185,150.41,150.34,27.2958]
[1642055683108,2.058185,150.41,150.34,24.6378]
[1642055683908,2.058185,150.41,150.35,6.0]
[1642055684311,2.058185,150.41,150.35,6.25]
[1642055688113,0.25,150.41,150.35,6.25]
[1642055688514,2.058185,150.42,150.35,6.25]
[1642055689112,1.808185,150.41,150.35,6.25]
[1642055689715,2.058185,150.41,150.35,6.25]
[1642055689914,1.808185,150.42,150.35,16.2244]
[1642055690316,2.058185,150.42,150.35,16.2244]
[1642055692317,2.058185,150.42,150.35,8.908]
[1642055694621,2.058185,150.42,150.35,6.25]
[1642055696824,2.058185,150.42,150.35,0.25]
[1642055697026,2.058185,150.42,150.34,27.2958]
[1642055697425,1.808185,150.41,150.34,27.2958]
[1642055700830,2.058185,150.41,150.34,27.2958]
[1642055701030,2.058185,150.41,150.34,37.2708]
[1642055701628,1.808185,150.41,150.34,37.2708]
[1642055701829,1.808185,150.41,150.35,6.0]
[1642055702028,1.808185,150.41,150.35,15.9744]
[1642055702232,1.808185,150.41,150.35,16.2244]
[1642055702428,1.808185,150.42,150.35,16.2244]
[1642055703337,24.635785,150.43,150.35,16.2244]
[1642055703527,24.885785,150.43,150.35,16.2244]
[1642055704734,24.885785,150.43,150.35,83.0344]
[1642055705132,24.885785,150.43,150.35,16.2244]
[1642055705630,24.885785,150.43,150.35,83.0344]
[1642055706733,1.808185,150.43,150.35,83.0344]
[1642055706934,1.808185,150.43,150.36,2.918]
[1642055707136,1.808185,150.43,150.39,9.9707]
[1642055707336,1.808185,150.43,150.4,2.658]
[1642055707532,1.808185,150.43,150.4,75.728]
[1642055707734,1.808185,150.43,150.41,29.79646583]
[1642055707933,1.808185,150.45,150.42,50.658]
[1642055708131,1.808185,150.45,150.42,56.908]
[1642055708961,1.808185,150.45,150.43,6.06429993]
[1642055709161,105.302155,150.52,150.43,6.31429993]
[1642055709162,1.808185,150.48,150.43,6.31429993]
[1642055709461,1.808185,150.48,150.44,28.8844]
[1642055709664,1.808185,150.48,150.44,29.1344]
[1642055711061,1.808185,150.5,150.44,29.1344]
[1642055711964,1.808185,150.51,150.44,29.1344]
[1642055712864,1.808185,150.51,150.44,23.1344]
[1642055713966,1.808185,150.51,150.44,33.1027]
[1642055714167,1.808185,150.51,150.44,99.9127]
[1642055714366,1.808185,150.51,150.45,6.0]
[1642055714566,99.8776,150.52,150.45,6.0]
[1642055714567,99.027785,150.52,150.45,6.0]
[1642055714767,99.277785,150.52,150.45,0.25]
[1642055715167,99.177785,150.52,150.45,0.25]
[1642055715467,109.147085,150.52,150.45,0.25]
[1642055715666,109.147085,150.52,150.44,23.1344]
[1642055717270,107.3389,150.52,150.44,23.1344]
[1642055718672,97.3696,150.52,150.45,6.0]
[1642055719071,97.3696,150.52,150.45,6.25]
[1642055720272,97.3696,150.52,150.45,16.2177]
[1642055727088,0.25,150.52,150.46,66.81]
[1642055727316,0.25,150.53,150.45,16.2177]
[1642055727516,0.25,150.53,150.45,10.2177]
[1642055727718,2.907,150.54,150.45,0.25]
[1642055728116,2.907,150.54,150.44,25.7924]
[1642055729015,2.907,150.54,150.44,35.7606]
[1642055729016,9.9687,150.53,150.44,35.7606]
[1642055729216,10.2187,150.53,150.44,35.7606]
[1642055729617,24.5196,150.52,150.44,35.7606]
[1642055730017,24.7696,150.52,150.44,35.7606]
[1642055733325,24.5196,150.52,150.44,35.7606]
[1642055734124,24.5196,150.52,150.44,102.5706]
[1642055734325,24.5196,150.52,150.44,35.7606]
[1642055737028,26.327785,150.52,150.44,35.7606]
[1642055737428,26.327785,150.52,150.44,25.7924]
[1642055738129,56.17254485,150.52,150.44,25.5424]
[1642055738331,66.14184485,150.52,150.44,22.8844]
[1642055738931,1.808185,150.51,150.44,22.8844]
[1642055739533,1.808185,150.51,150.44,23.1344]
[1642055740631,1.808185,150.51,150.44,25.7924]
[1642055741231,1.808185,150.51,150.45,6.0]
[1642055741633,1.808185,150.51,150.45,6.25]
[1642055743741,1.808185,150.51,150.45,0.25]
[1642055744141,1.808185,150.51,150.44,25.7924]
[1642055744747,11.778085,150.51,150.44,23.1344]
[1642055746966,1.808185,150.5,150.44,23.1344]
[1642055748969,1.808185,150.5,150.42,12.6977]
[1642055749170,12.6294,150.49,150.42,2.658]
[1642055749569,12.8794,150.49,150.42,2.658]
[1642055750168,12.6294,150.49,150.42,2.658]
[1642055750369,12.6294,150.49,150.42,26.6145]
[1642055750669,1.808185,150.48,150.42,23.7065]
[1642055750874,1.808185,150.48,150.42,23.9565]
[1642055751470,14.437585,150.49,150.42,23.9565]
[1642055751671,11.779585,150.49,150.42,23.9565]
[1642055751871,11.779585,150.49,150.42,0.25]
[1642055752074,11.779585,150.49,150.41,23.9821659]
[1642055752075,24.2154,150.48,150.41,23.9821659]
[1642055752269,26.8734,150.48,150.41,23.9821659]
[1642055752669,27.1234,150.48,150.41,23.9821659]
[1642055753169,26.8734,150.48,150.41,23.9821659]
[1642055753373,24.2154,150.48,150.41,23.9821659]
[1642055755678,24.2154,150.48,150.41,33.9524659]
[1642055761088,24.2154,150.48,150.41,23.9821659]
[1642055765290,24.2154,150.48,150.42,2.658]
[1642055765689,24.2154,150.48,150.42,2.908]
[1642055768897,24.2154,150.48,150.42,0.25]
[1642055769194,24.2154,150.48,150.41,23.9821659]
[1642055770899,1.808185,150.49,150.41,23.9821659]
[1642055771099,1.808185,150.49,150.42,25.3534]
[1642055771500,1.808185,150.49,150.42,25.6034]
[1642055772225,27.211885,150.52,150.43,9.9686]
[1642055772625,27.211885,150.52,150.43,10.2186]
[1642055773028,27.211885,150.52,150.44,23.0083]
[1642055773226,27.211885,150.52,150.44,23.2583]
[1642055774329,24.553885,150.52,150.44,25.9163]
[1642055776535,34.523485,150.52,150.44,25.9163]
[1642055778934,34.523485,150.52,150.44,23.2583]
[1642055782139,60.00600108,150.52,150.44,23.2583]
[1642055782540,60.00600108,150.52,150.44,0.25]
[1642055782742,60.25600108,150.52,150.42,27.1644]
[1642055782940,2.658,150.51,150.42,27.1644]
[1642055783143,2.658,150.51,150.42,2.658]
[1642055783144,9.9725,150.48,150.42,2.658]
[1642055783441,2.658,150.47,150.42,2.658]
[1642055783640,2.908,150.47,150.39,25.93973647]
[1642055783842,27.4558,150.47,150.43,29.19578676]
[1642055785040,24.7978,150.47,150.43,29.19578676]
[1642055785240,24.5478,150.47,150.43,29.19578676]
[1642055785442,34.7706,150.47,150.43,29.19578676]
[1642055786142,34.5206,150.47,150.43,29.19578676]
[1642055786442,24.5478,150.47,150.43,29.19578676]
[1642055790249,24.5478,150.47,150.43,29.44578676]
[1642055790982,24.5478,150.47,150.43,29.19578676]
[1642055792382,24.5478,150.47,150.43,29.44578676]
[1642055792782,24.5478,150.47,150.43,29.19578676]
[1642055800588,24.0478,150.47,150.43,29.19578676]
[1642055803395,9.9716,150.49,150.43,29.19578676]
[1642055803594,1.808185,150.5,150.43,29.44578676]
[1642055804195,1.808185,150.51,150.43,29.44578676]
[1642055804394,1.808185,150.51,150.44,6.0]
[1642055804595,1.808185,150.51,150.45,9.9676]
[1642055804795,1.808185,150.51,150.45,12.9456]
[1642055805197,23.1396,150.52,150.45,12.9456]
[1642055805396,1.808185,150.54,150.45,12.9456]
[1642055806197,25.011085,150.54,150.46,24.1079]
[1642055806601,25.011085,150.54,150.46,24.3579]
[1642055807098,23.2029,150.54,150.47,6.0]
[1642055807298,2.657,150.53,150.47,6.25]
[1642055807498,25.8599,150.54,150.47,6.25]
[1642055807899,25.8599,150.54,150.47,6.0]
[1642055809898,25.8599,150.54,150.46,24.1079]
[1642055810099,25.8599,150.54,150.46,24.3579]
[1642055811105,27.668085,150.54,150.46,24.3579]
[1642055812299,27.668085,150.54,150.44,2.657]
[1642055812500,27.668085,150.54,150.44,24.4153]
[1642055812900,30.08313652,150.53,150.44,34.3836]
[1642055813103,2.658,150.52,150.44,34.3836]
[1642055813303,32.99113652,150.53,150.44,34.3836]
[1642055813704,24.232,150.52,150.44,34.3836]
[1642055814106,24.482,150.52,150.44,34.3836]
[1642055817513,24.232,150.52,150.44,34.3836]
[1642055817714,24.482,150.52,150.44,34.3836]
[1642055818115,4.466185,150.54,150.44,34.3836]
[1642055818315,24.605185,150.54,150.44,50.6076]
[1642055818514,24.605185,150.54,150.44,51.82782457]
[1642055818722,24.605185,150.54,150.44,50.6076]
[1642055819520,24.605185,150.54,150.45,6.0]
[1642055819719,24.605185,150.54,150.46,9.9667]
[1642055819920,22.797,150.54,150.46,9.9667]
[1642055820122,22.797,150.54,150.46,10.2167]
[1642055821423,22.797,150.54,150.47,2.657]
[1642055821720,22.797,150.54,150.47,2.907]
[1642055822620,22.797,150.54,150.47,26.6375]
[1642055825453,22.797,150.54,150.47,23.9805]
[1642055833856,24.605185,150.54,150.47,23.9805]
[1642055840569,1.808185,150.54,150.48,2.657]
[1642055840770,1.808185,150.54,150.48,8.907]
[1642055840970,1.808185,150.54,150.48,8.977]
[1642055841171,1.808185,150.54,150.49,25.87677441]
[1642055841372,1.808185,150.56,150.5,2.657]
[1642055841571,1.808185,150.56,150.5,32.5651]
[1642055841771,1.808185,150.56,150.5,32.8151]
[1642055842375,22.5384,150.57,150.5,32.8151]
[1642055846579,1.808185,150.58,150.5,32.8151]
[1642055846979,25.921485,150.58,150.5,32.8151]
[1642055847679,24.1133,150.58,150.5,32.8151]
[1642055848282,24.1133,150.58,150.5,26.8151]
[1642055849482,25.921485,150.58,150.5,26.8151]
[1642055851283,24.1133,150.58,150.5,26.8151]
[1642055852184,24.1133,150.58,150.5,26.5651]
[1642055852386,34.3298,150.58,150.48,2.657]
[1642055852587,2.657,150.57,150.47,24.6047]
[1642055852789,2.907,150.57,150.47,24.6047]
[1642055853388,24.1326,150.56,150.47,24.6047]
[1642055853588,2.657,150.55,150.47,24.6047]
[1642055853786,2.907,150.55,150.47,24.6047]
[1642055853987,2.907,150.55,150.47,24.8547]
[1642055854187,2.657,150.55,150.47,24.8547]
[1642055854791,25.940785,150.56,150.48,2.657]
[1642055855194,25.940785,150.56,150.48,2.907]
[1642055855395,24.1326,150.56,150.48,2.907]
[1642055859215,24.3826,150.56,150.48,2.907]
[1642055859416,24.1326,150.56,150.48,2.907]
[1642055861817,24.1326,150.56,150.48,12.8727]
[1642055862518,24.3826,150.56,150.48,12.8727]
[1642055863117,24.3826,150.56,150.48,2.907]
[1642055863518,27.0396,150.56,150.48,0.25]
[1642055863721,27.0396,150.56,150.47,37.5481]
[1642055864821,26.7896,150.56,150.47,37.5481]
[1642055865020,25.940785,150.56,150.47,37.5481]